[Event "Titled Tuesday Blitz August 31 2021"]
[White "deribas12345"]
[Black "Sjugirov, Sanan"]
[BlackFideId "4189302"]
[WhiteElo "2574"]
[BlackElo "2472"]
[Result "0-1"]
[Round "02"]
[TimeControl "180+1"]
[Date "2021.08.31"]
[WhiteClock "0:00:04"]
[BlackClock "0:00:05"]

1. d4 {[%clk 0:03:00]}  Nf6 {[%clk 0:02:59]} 2. c4 {[%clk 0:03:01]}  e6 {[%clk 0:03:00]} 3. Nc3 {[%clk 0:03:01]}  Bb4 {[%clk 0:03:00]} 4. a3 {[%clk 0:03:01]}  Bxc3+ {[%clk 0:02:59]} 5. bxc3 {[%clk 0:03:02]}  d5 {[%clk 0:02:54]} 6. f3 {[%clk 0:03:02]}  Nc6 {[%clk 0:02:51]} 7. cxd5 {[%clk 0:02:57]}  exd5 {[%clk 0:02:52]} 8. e3 {[%clk 0:02:57]}  Bf5 {[%clk 0:02:52]} 9. g4 {[%clk 0:02:54]}  Nxg4 {[%clk 0:02:43]} 10. fxg4 {[%clk 0:02:52]}  Qh4+ {[%clk 0:02:43]} 11. Kd2 {[%clk 0:02:53]}  Be4 {[%clk 0:02:33]} 12. Nf3 {[%clk 0:02:13]}  Qf2+ {[%clk 0:02:32]} 13. Be2 {[%clk 0:02:13]}  Bxf3 {[%clk 0:02:31]} 14. Rf1 {[%clk 0:02:13]}  Qxe2+ {[%clk 0:02:30]} 15. Qxe2 {[%clk 0:02:14]}  Bxe2 {[%clk 0:02:31]} 16. Kxe2 {[%clk 0:02:15]}  f6 {[%clk 0:02:11]} 17. Rb1 {[%clk 0:01:56]}  O-O-O {[%clk 0:02:06]} 18. Kd3 {[%clk 0:01:42]}  Rhe8 {[%clk 0:02:05]} 19. c4 {[%clk 0:01:36]}  dxc4+ {[%clk 0:01:58]} 20. Kxc4 {[%clk 0:01:37]}  Ne7 {[%clk 0:01:50]} 21. Bd2 {[%clk 0:01:29]}  Nd5 {[%clk 0:01:45]} 22. Rb3 {[%clk 0:01:25]}  Re6 {[%clk 0:01:39]} 23. g5 {[%clk 0:01:18]}  fxg5 {[%clk 0:01:28]} 24. Rf7 {[%clk 0:01:17]}  Re7 {[%clk 0:01:13]} 25. Rxe7 {[%clk 0:01:15]}  Nxe7 {[%clk 0:01:14]} 26. e4 {[%clk 0:01:16]}  Nc6 {[%clk 0:01:03]} 27. Bc3 {[%clk 0:01:05]}  Re8 {[%clk 0:00:59]} 28. d5 {[%clk 0:00:54]}  Nd8 {[%clk 0:00:26]} 29. Kd3 {[%clk 0:00:38]}  g6 {[%clk 0:00:20]} 30. Rb2 {[%clk 0:00:38]}  Rf8 {[%clk 0:00:19]} 31. e5 {[%clk 0:00:35]}  c6 {[%clk 0:00:17]} 32. e6 {[%clk 0:00:32]}  Re8 {[%clk 0:00:17]} 33. Bf6 {[%clk 0:00:25]}  cxd5 {[%clk 0:00:13]} 34. Bxd8 {[%clk 0:00:20]}  Kxd8 {[%clk 0:00:14]} 35. Rxb7 {[%clk 0:00:20]}  Rxe6 {[%clk 0:00:14]} 36. Rxh7 {[%clk 0:00:20]}  Ra6 {[%clk 0:00:13]} 37. Kd4 {[%clk 0:00:20]}  Rxa3 {[%clk 0:00:13]} 38. Kxd5 {[%clk 0:00:21]}  a5 {[%clk 0:00:10]} 39. Rg7 {[%clk 0:00:19]}  Rd3+ {[%clk 0:00:08]} 40. Kc4 {[%clk 0:00:18]}  Rd6 {[%clk 0:00:07]} 41. Kc5 {[%clk 0:00:18]}  Rf6 {[%clk 0:00:07]} 42. Kb5 {[%clk 0:00:16]}  Rf5+ {[%clk 0:00:06]} 43. Ka4 {[%clk 0:00:17]}  Ke8 {[%clk 0:00:05]} 44. Rxg6 {[%clk 0:00:14]}  Kf7 {[%clk 0:00:06]} 45. Ra6 {[%clk 0:00:11]}  Rf2 {[%clk 0:00:05]} 46. Kb3 {[%clk 0:00:09]}  Rxh2 {[%clk 0:00:04]} 47. Rxa5 {[%clk 0:00:09]}  Kf6 {[%clk 0:00:05]} 48. Kc3 {[%clk 0:00:08]}  Re2 {[%clk 0:00:05]} 49. Kd3 {[%clk 0:00:08]}  Re7 {[%clk 0:00:03]} 50. Rb5 {[%clk 0:00:07]}  g4 {[%clk 0:00:03]} 51. Ra5 {[%clk 0:00:06]}  g3 {[%clk 0:00:03]} 52. Ra1 {[%clk 0:00:04]}  Kf5 {[%clk 0:00:03]} 53. Ra5+ {[%clk 0:00:02]}  Kf4 {[%clk 0:00:03]} 54. Ra8 {[%clk 0:00:01]}  Kf3 {[%clk 0:00:03]} 55. Rf8+ {[%clk 0:00:01]}  Kg2 {[%clk 0:00:04]} 56. Rg8 {[%clk 0:00:02]}  Kf2 {[%clk 0:00:04]} 57. Rf8+ {[%clk 0:00:01]}  Kg1 {[%clk 0:00:04]} 58. Rg8 {[%clk 0:00:02]}  g2 {[%clk 0:00:05]} 59. Kd2 {[%clk 0:00:02]}  Re6 {[%clk 0:00:05]} 60. Rf8 {[%clk 0:00:03]}  Re5 {[%clk 0:00:05]} 61. Rf7 {[%clk 0:00:03]}  Kh2 {[%clk 0:00:04]} 62. Rh7+ {[%clk 0:00:03]}  Kg3 {[%clk 0:00:04]} 63. Rg7+ {[%clk 0:00:04]}  Kf3 {[%clk 0:00:04]} 64. Rf7+ {[%clk 0:00:04]}  Kg4 {[%clk 0:00:04]} 65. Rg7+ {[%clk 0:00:04]}  Rg5 {[%clk 0:00:04]} 66. Re7 {[%clk 0:00:04]}  g1=Q {[%clk 0:00:05]} 0-1


[Site "https://www.chess.com"]

[Event "Titled Tuesday Blitz August 31 2021"]
[White "Abdusattorov, Nodirbek"]
[Black "Weetik, Vjacheslav"]
[WhiteFideId "14204118"]
[BlackFideId "4153472"]
[WhiteElo "2662"]
[BlackElo "2469"]
[Result "1-0"]
[Round "03"]
[TimeControl "180+1"]
[Date "2021.08.31"]
[WhiteClock "0:00:58"]
[BlackClock "0:00:02"]

1. e4 {[%clk 0:03:00]}  c6 {[%clk 0:02:58]} 2. d4 {[%clk 0:02:59]}  d5 {[%clk 0:02:59]} 3. e5 {[%clk 0:03:00]}  Bf5 {[%clk 0:02:59]} 4. h4 {[%clk 0:03:01]}  Qb6 {[%clk 0:02:57]} 5. Nc3 {[%clk 0:02:56]}  h6 {[%clk 0:02:57]} 6. g4 {[%clk 0:02:55]}  Bd7 {[%clk 0:02:56]} 7. f4 {[%clk 0:02:46]}  h5 {[%clk 0:02:52]} 8. gxh5 {[%clk 0:02:36]}  Nh6 {[%clk 0:02:49]} 9. Be2 {[%clk 0:02:26]}  Bf5 {[%clk 0:02:29]} 10. Nf3 {[%clk 0:02:18]}  e6 {[%clk 0:02:29]} 11. Na4 {[%clk 0:02:16]}  Qc7 {[%clk 0:02:19]} 12. Be3 {[%clk 0:02:16]}  Bg4 {[%clk 0:01:53]} 13. Nd2 {[%clk 0:02:04]}  Bxe2 {[%clk 0:01:51]} 14. Qxe2 {[%clk 0:02:04]}  Nf5 {[%clk 0:01:51]} 15. Bf2 {[%clk 0:02:05]}  Nd7 {[%clk 0:01:47]} 16. Nb3 {[%clk 0:02:03]}  b6 {[%clk 0:01:31]} 17. O-O-O {[%clk 0:02:01]}  a6 {[%clk 0:00:53]} 18. Rh3 {[%clk 0:01:41]}  c5 {[%clk 0:00:34]} 19. dxc5 {[%clk 0:01:41]}  bxc5 {[%clk 0:00:33]} 20. Nbxc5 {[%clk 0:01:29]}  Nxc5 {[%clk 0:00:24]} 21. Bxc5 {[%clk 0:01:26]}  Bxc5 {[%clk 0:00:21]} 22. Rc3 {[%clk 0:01:26]}  Be3+ {[%clk 0:00:17]} 23. Rxe3 {[%clk 0:01:27]}  Nxe3 {[%clk 0:00:16]} 24. Qxe3 {[%clk 0:01:28]}  Rxh5 {[%clk 0:00:15]} 25. Kb1 {[%clk 0:01:23]}  g6 {[%clk 0:00:15]} 26. Nc5 {[%clk 0:01:13]}  Rc8 {[%clk 0:00:13]} 27. b4 {[%clk 0:01:10]}  a5 {[%clk 0:00:13]} 28. a3 {[%clk 0:01:06]}  Rxh4 {[%clk 0:00:13]} 29. Rd3 {[%clk 0:01:04]}  axb4 {[%clk 0:00:12]} 30. axb4 {[%clk 0:01:05]}  Rb8 {[%clk 0:00:12]} 31. Na6 {[%clk 0:01:02]}  Qb6 {[%clk 0:00:09]} 32. Nxb8 {[%clk 0:01:01]}  Qxb8 {[%clk 0:00:09]} 33. Rb3 {[%clk 0:00:58]}  Qb5 {[%clk 0:00:07]} 34. Kb2 {[%clk 0:00:59]}  Rh2 {[%clk 0:00:07]} 35. Qc3 {[%clk 0:00:58]}  Kf8 {[%clk 0:00:05]} 36. Qc5+ {[%clk 0:00:57]}  Qxc5 {[%clk 0:00:05]} 37. bxc5 {[%clk 0:00:58]}  Ke8 {[%clk 0:00:05]} 38. c6 {[%clk 0:00:57]}  Kd8 {[%clk 0:00:05]} 39. Rb7 {[%clk 0:00:57]}  Rf2 {[%clk 0:00:02]} 40. Rxf7 {[%clk 0:00:57]}  g5 {[%clk 0:00:03]} 41. Rd7+ {[%clk 0:00:56]}  Kc8 {[%clk 0:00:02]} 42. fxg5 {[%clk 0:00:57]}  Rf5 {[%clk 0:00:02]} 43. g6 {[%clk 0:00:58]} 1-0


[Site "https://www.chess.com"]

[Event "Titled Tuesday Blitz August 31 2021"]
[White "Arabidze, Meri"]
[Black "Hansen, Eric"]
[WhiteFideId "13604040"]
[BlackFideId "2606771"]
[WhiteElo "2432"]
[BlackElo "2568"]
[Result "0-1"]
[Round "03"]
[TimeControl "180+1"]
[Date "2021.08.31"]
[WhiteClock "0:00:04"]
[BlackClock "0:00:06"]

1. Nf3 {[%clk 0:03:00]}  d5 {[%clk 0:02:47]} 2. d4 {[%clk 0:03:01]}  Nf6 {[%clk 0:02:45]} 3. c4 {[%clk 0:03:01]}  e6 {[%clk 0:02:45]} 4. Nc3 {[%clk 0:03:01]}  c6 {[%clk 0:02:41]} 5. e3 {[%clk 0:03:01]}  Nbd7 {[%clk 0:02:41]} 6. Qc2 {[%clk 0:03:00]}  Bd6 {[%clk 0:02:39]} 7. Be2 {[%clk 0:02:59]}  O-O {[%clk 0:02:39]} 8. O-O {[%clk 0:02:59]}  dxc4 {[%clk 0:02:35]} 9. a4 {[%clk 0:02:59]}  a5 {[%clk 0:02:33]} 10. Bxc4 {[%clk 0:02:59]}  e5 {[%clk 0:02:34]} 11. Rd1 {[%clk 0:02:57]}  Qe7 {[%clk 0:02:33]} 12. Bb3 {[%clk 0:02:54]}  Bb4 {[%clk 0:01:58]} 13. Bd2 {[%clk 0:02:37]}  exd4 {[%clk 0:01:50]} 14. exd4 {[%clk 0:02:38]}  Nb6 {[%clk 0:01:50]} 15. Bg5 {[%clk 0:02:37]}  h6 {[%clk 0:01:47]} 16. Bh4 {[%clk 0:02:36]}  Qd6 {[%clk 0:01:47]} 17. Ne5 {[%clk 0:02:28]}  Be6 {[%clk 0:01:36]} 18. Bxe6 {[%clk 0:01:53]}  Qxe6 {[%clk 0:01:36]} 19. Re1 {[%clk 0:01:53]}  Nfd5 {[%clk 0:01:28]} 20. Nd3 {[%clk 0:01:46]}  Qg4 {[%clk 0:01:19]} 21. Re4 {[%clk 0:01:42]}  Qf5 {[%clk 0:01:16]} 22. Rae1 {[%clk 0:01:40]}  Rac8 {[%clk 0:00:54]} 23. h3 {[%clk 0:01:29]}  Bd6 {[%clk 0:00:51]} 24. Qd1 {[%clk 0:01:10]}  Nb4 {[%clk 0:00:44]} 25. Ne5 {[%clk 0:01:07]}  f6 {[%clk 0:00:29]} 26. Ng4 {[%clk 0:01:00]}  N6d5 {[%clk 0:00:25]} 27. Re6 {[%clk 0:00:53]}  Rcd8 {[%clk 0:00:21]} 28. Nxd5 {[%clk 0:00:48]}  Nxd5 {[%clk 0:00:20]} 29. R6e4 {[%clk 0:00:40]}  h5 {[%clk 0:00:17]} 30. Nh2 {[%clk 0:00:34]}  Bxh2+ {[%clk 0:00:18]} 31. Kxh2 {[%clk 0:00:34]}  Rd7 {[%clk 0:00:15]} 32. Bg3 {[%clk 0:00:33]}  Rfd8 {[%clk 0:00:15]} 33. Re8+ {[%clk 0:00:33]}  Rxe8 {[%clk 0:00:15]} 34. Rxe8+ {[%clk 0:00:34]}  Kf7 {[%clk 0:00:15]} 35. Rb8 {[%clk 0:00:33]}  Kg6 {[%clk 0:00:09]} 36. h4 {[%clk 0:00:32]}  Re7 {[%clk 0:00:08]} 37. Qb3 {[%clk 0:00:28]}  Nb4 {[%clk 0:00:07]} 38. Qg8 {[%clk 0:00:19]}  Qd7 {[%clk 0:00:05]} 39. Rf8 {[%clk 0:00:18]}  Qe6 {[%clk 0:00:04]} 40. Qh8 {[%clk 0:00:16]}  Nd5 {[%clk 0:00:03]} 41. f3 {[%clk 0:00:16]}  Ne3 {[%clk 0:00:03]} 42. Bf2 {[%clk 0:00:14]}  Qd6+ {[%clk 0:00:03]} 43. Kg1 {[%clk 0:00:13]}  Nf5 {[%clk 0:00:03]} 44. g4 {[%clk 0:00:14]}  Nh6 {[%clk 0:00:03]} 45. gxh5+ {[%clk 0:00:12]}  Kxh5 {[%clk 0:00:03]} 46. Qh7 {[%clk 0:00:13]}  Qd5 {[%clk 0:00:03]} 47. Kg2 {[%clk 0:00:12]}  Qf5 {[%clk 0:00:03]} 48. Qxf5+ {[%clk 0:00:06]}  Nxf5 {[%clk 0:00:04]} 49. Rh8+ {[%clk 0:00:07]}  Kg6 {[%clk 0:00:05]} 50. h5+ {[%clk 0:00:07]}  Kf7 {[%clk 0:00:05]} 51. Rb8 {[%clk 0:00:07]}  Rd7 {[%clk 0:00:05]} 52. Kf1 {[%clk 0:00:06]}  Ke6 {[%clk 0:00:05]} 53. Ke2 {[%clk 0:00:06]}  Kd5 {[%clk 0:00:06]} 54. Kd3 {[%clk 0:00:06]}  Nd6 {[%clk 0:00:06]} 55. b3 {[%clk 0:00:04]}  Nf5 {[%clk 0:00:06]} 56. Rg8 {[%clk 0:00:04]}  Ke6 {[%clk 0:00:05]} 57. Re8+ {[%clk 0:00:04]}  Kf7 {[%clk 0:00:06]} 58. Rb8 {[%clk 0:00:05]}  c5 {[%clk 0:00:06]} 59. Kc4 {[%clk 0:00:04]}  cxd4 {[%clk 0:00:06]} 60. Kd3 {[%clk 0:00:05]}  Ke6 {[%clk 0:00:06]} 61. Ra8 {[%clk 0:00:05]}  b6 {[%clk 0:00:06]} 62. Rb8 {[%clk 0:00:05]}  Rd6 {[%clk 0:00:06]} 63. Rb7 {[%clk 0:00:05]}  Rc6 {[%clk 0:00:05]} 64. Ke4 {[%clk 0:00:04]}  Nd6+ {[%clk 0:00:05]} 65. Kxd4 {[%clk 0:00:04]}  Nxb7 {[%clk 0:00:06]} 0-1


[Site "https://www.chess.com"]

[Event "Titled Tuesday Blitz August 31 2021"]
[White "Ashwin, Jayaram"]
[Black "Shahade, Gregory"]
[WhiteFideId "5018137"]
[BlackFideId "2009064"]
[WhiteElo "2461"]
[BlackElo "2655"]
[Result "0-1"]
[Round "03"]
[TimeControl "180+1"]
[Date "2021.08.31"]
[WhiteClock "0:00:01"]
[BlackClock "0:00:05"]

1. d4 {[%clk 0:02:55]}  Nf6 {[%clk 0:02:59]} 2. c4 {[%clk 0:02:55]}  g6 {[%clk 0:03:00]} 3. Nc3 {[%clk 0:02:55]}  d5 {[%clk 0:03:00]} 4. cxd5 {[%clk 0:02:55]}  Nxd5 {[%clk 0:03:01]} 5. e4 {[%clk 0:02:55]}  Nxc3 {[%clk 0:03:01]} 6. bxc3 {[%clk 0:02:56]}  Bg7 {[%clk 0:03:01]} 7. Be3 {[%clk 0:02:57]}  c5 {[%clk 0:03:00]} 8. Rc1 {[%clk 0:02:57]}  Qa5 {[%clk 0:02:57]} 9. Qd2 {[%clk 0:02:57]}  O-O {[%clk 0:02:55]} 10. Nf3 {[%clk 0:02:56]}  Rd8 {[%clk 0:02:55]} 11. d5 {[%clk 0:02:56]}  e6 {[%clk 0:02:53]} 12. Bg5 {[%clk 0:02:53]}  f6 {[%clk 0:02:53]} 13. Be3 {[%clk 0:02:50]}  Nc6 {[%clk 0:02:52]} 14. c4 {[%clk 0:02:35]}  Qxd2+ {[%clk 0:02:39]} 15. Nxd2 {[%clk 0:02:20]}  Nd4 {[%clk 0:02:35]} 16. Nb3 {[%clk 0:02:14]}  Nxb3 {[%clk 0:02:21]} 17. axb3 {[%clk 0:02:13]}  b6 {[%clk 0:02:21]} 18. Be2 {[%clk 0:02:04]}  f5 {[%clk 0:02:20]} 19. exf5 {[%clk 0:01:58]}  exf5 {[%clk 0:02:17]} 20. O-O {[%clk 0:01:45]}  Bd7 {[%clk 0:02:11]} 21. h4 {[%clk 0:01:32]}  Re8 {[%clk 0:02:09]} 22. Bf3 {[%clk 0:01:31]}  Rad8 {[%clk 0:01:52]} 23. g3 {[%clk 0:01:21]}  Kf7 {[%clk 0:01:51]} 24. Rfe1 {[%clk 0:01:19]}  Bf6 {[%clk 0:01:41]} 25. Bf4 {[%clk 0:01:13]}  Rc8 {[%clk 0:01:26]} 26. Kf1 {[%clk 0:01:10]}  a5 {[%clk 0:01:15]} 27. Rxe8 {[%clk 0:01:08]}  Rxe8 {[%clk 0:01:15]} 28. Re1 {[%clk 0:01:06]}  Rxe1+ {[%clk 0:00:54]} 29. Kxe1 {[%clk 0:01:06]}  a4 {[%clk 0:00:41]} 30. bxa4 {[%clk 0:01:02]}  Bxa4 {[%clk 0:00:42]} 31. Bc7 {[%clk 0:00:51]}  b5 {[%clk 0:00:37]} 32. cxb5 {[%clk 0:00:30]}  Bc3+ {[%clk 0:00:36]} 33. Ke2 {[%clk 0:00:26]}  Bxb5+ {[%clk 0:00:37]} 34. Kd1 {[%clk 0:00:25]}  Bd3 {[%clk 0:00:33]} 35. h5 {[%clk 0:00:19]}  Ke7 {[%clk 0:00:27]} 36. hxg6 {[%clk 0:00:16]}  hxg6 {[%clk 0:00:27]} 37. Bf4 {[%clk 0:00:12]}  Kd7 {[%clk 0:00:25]} 38. Be2 {[%clk 0:00:09]}  Be4 {[%clk 0:00:23]} 39. Bc4 {[%clk 0:00:06]}  Bf6 {[%clk 0:00:18]} 40. Ke2 {[%clk 0:00:06]}  Bd4 {[%clk 0:00:18]} 41. f3 {[%clk 0:00:05]}  Bc2 {[%clk 0:00:17]} 42. g4 {[%clk 0:00:06]}  fxg4 {[%clk 0:00:14]} 43. fxg4 {[%clk 0:00:06]}  Bb1 {[%clk 0:00:13]} 44. Bd3 {[%clk 0:00:06]}  Bxd3+ {[%clk 0:00:10]} 45. Kxd3 {[%clk 0:00:07]}  Ke7 {[%clk 0:00:08]} 46. Kc4 {[%clk 0:00:07]}  Kd7 {[%clk 0:00:08]} 47. Bg3 {[%clk 0:00:07]}  Ke7 {[%clk 0:00:08]} 48. Bf4 {[%clk 0:00:07]}  Kd7 {[%clk 0:00:09]} 49. Bg3 {[%clk 0:00:04]}  Ke7 {[%clk 0:00:09]} 50. Kb5 {[%clk 0:00:04]}  Kd7 {[%clk 0:00:09]} 51. Bf4 {[%clk 0:00:05]}  Ke7 {[%clk 0:00:09]} 52. Kc6 {[%clk 0:00:04]}  Bf6 {[%clk 0:00:05]} 53. Kc7 {[%clk 0:00:03]}  Ke8 {[%clk 0:00:04]} 54. d6 {[%clk 0:00:03]}  Bd8+ {[%clk 0:00:04]} 55. Kc8 {[%clk 0:00:02]}  Ba5 {[%clk 0:00:03]} 56. d7+ {[%clk 0:00:01]}  Kf7 {[%clk 0:00:04]} 57. d8=Q {[%clk 0:00:01]}  Bxd8 {[%clk 0:00:04]} 58. Kxd8 {[%clk 0:00:02]}  Ke6 {[%clk 0:00:04]} 59. Bd2 {[%clk 0:00:01]}  Ke5 {[%clk 0:00:04]} 60. Ke7 {[%clk 0:00:01]}  c4 {[%clk 0:00:04]} 61. Kf7 {[%clk 0:00:01]}  c3 {[%clk 0:00:05]} 0-1


[Site "https://www.chess.com"]

[Event "Titled Tuesday Blitz August 31 2021"]
[White "Bacrot, Etienne"]
[Black "Maiorov, Nikita"]
[WhiteFideId "605506"]
[BlackFideId "13501720"]
[WhiteElo "2673"]
[BlackElo "2440"]
[Result "0-1"]
[Round "03"]
[TimeControl "180+1"]
[Date "2021.08.31"]
[WhiteClock "0:00:03"]
[BlackClock "0:00:07"]

1. e4 {[%clk 0:03:00]}  e5 {[%clk 0:02:57]} 2. Nf3 {[%clk 0:03:00]}  Nc6 {[%clk 0:02:56]} 3. Bb5 {[%clk 0:02:59]}  a6 {[%clk 0:02:55]} 4. Ba4 {[%clk 0:02:59]}  Nf6 {[%clk 0:02:55]} 5. d3 {[%clk 0:02:59]}  d6 {[%clk 0:02:52]} 6. c4 {[%clk 0:02:58]}  g6 {[%clk 0:02:50]} 7. Nc3 {[%clk 0:02:58]}  Bg7 {[%clk 0:02:49]} 8. h3 {[%clk 0:02:58]}  O-O {[%clk 0:02:47]} 9. Be3 {[%clk 0:02:57]}  Nd7 {[%clk 0:02:46]} 10. Bxc6 {[%clk 0:02:42]}  bxc6 {[%clk 0:02:44]} 11. d4 {[%clk 0:02:41]}  exd4 {[%clk 0:02:43]} 12. Nxd4 {[%clk 0:02:39]}  Ne5 {[%clk 0:02:40]} 13. b3 {[%clk 0:02:20]}  c5 {[%clk 0:02:38]} 14. Nde2 {[%clk 0:02:18]}  Kh8 {[%clk 0:02:31]} 15. Qd2 {[%clk 0:02:12]}  f5 {[%clk 0:02:27]} 16. Bh6 {[%clk 0:02:05]}  fxe4 {[%clk 0:02:23]} 17. Bxg7+ {[%clk 0:02:04]}  Kxg7 {[%clk 0:02:22]} 18. Nxe4 {[%clk 0:01:55]}  Bb7 {[%clk 0:02:17]} 19. N2g3 {[%clk 0:01:49]}  Qh4 {[%clk 0:02:14]} 20. Qe3 {[%clk 0:01:34]}  Rf4 {[%clk 0:02:07]} 21. Nxc5 {[%clk 0:01:26]}  Re8 {[%clk 0:02:01]} 22. O-O-O {[%clk 0:01:09]}  dxc5 {[%clk 0:01:46]} 23. Rhe1 {[%clk 0:01:07]}  Rd4 {[%clk 0:01:27]} 24. Kb1 {[%clk 0:00:46]}  Bxg2 {[%clk 0:00:48]} 25. Rg1 {[%clk 0:00:43]}  Be4+ {[%clk 0:00:32]} 26. Ka1 {[%clk 0:00:38]}  Rxd1+ {[%clk 0:00:20]} 27. Rxd1 {[%clk 0:00:37]}  Bf3 {[%clk 0:00:19]} 28. Rd2 {[%clk 0:00:26]}  Qf6 {[%clk 0:00:18]} 29. Qc3 {[%clk 0:00:16]}  Ng4 {[%clk 0:00:12]} 30. Rd3 {[%clk 0:00:14]}  Re1+ {[%clk 0:00:10]} 31. Kb2 {[%clk 0:00:14]}  Ne5 {[%clk 0:00:09]} 32. Rd2 {[%clk 0:00:10]}  Nxc4+ {[%clk 0:00:08]} 33. bxc4 {[%clk 0:00:10]}  Rb1+ {[%clk 0:00:08]} 34. Kxb1 {[%clk 0:00:08]}  Qxc3 {[%clk 0:00:08]} 35. Rd7+ {[%clk 0:00:09]}  Kh6 {[%clk 0:00:07]} 36. Rxc7 {[%clk 0:00:07]}  Qxc4 {[%clk 0:00:06]} 37. Kb2 {[%clk 0:00:08]}  Bd5 {[%clk 0:00:06]} 38. Rd7 {[%clk 0:00:07]}  Qxa2+ {[%clk 0:00:05]} 39. Kc1 {[%clk 0:00:06]}  Qc4+ {[%clk 0:00:06]} 40. Kd2 {[%clk 0:00:06]}  Qd4+ {[%clk 0:00:06]} 41. Ke1 {[%clk 0:00:07]}  Qe5+ {[%clk 0:00:06]} 42. Kf1 {[%clk 0:00:06]}  Qa1+ {[%clk 0:00:06]} 43. Ke2 {[%clk 0:00:05]}  Bc4+ {[%clk 0:00:06]} 44. Kf3 {[%clk 0:00:05]}  Qa3+ {[%clk 0:00:06]} 45. Kg2 {[%clk 0:00:05]}  Be6 {[%clk 0:00:06]} 46. Rd6 {[%clk 0:00:04]}  Qb3 {[%clk 0:00:07]} 47. Ne4 {[%clk 0:00:03]}  Bd5 {[%clk 0:00:08]} 48. Kh2 {[%clk 0:00:02]}  Bxe4 {[%clk 0:00:07]} 49. h4 {[%clk 0:00:03]}  Qf3 {[%clk 0:00:07]} 0-1


[Site "https://www.chess.com"]

[Event "Titled Tuesday Blitz August 31 2021"]
[White "Begunov, Konstantin"]
[Black "Batsuren, Dambasuren"]
[WhiteFideId "4118510"]
[BlackFideId "4902920"]
[WhiteElo "2262"]
[BlackElo "2371"]
[Result "0-1"]
[Round "03"]
[TimeControl "180+1"]
[Date "2021.08.31"]
[WhiteClock "0:00:02"]
[BlackClock "0:00:41"]

1. d4 {[%clk 0:03:00]}  Nf6 {[%clk 0:02:59]} 2. c4 {[%clk 0:03:00]}  c5 {[%clk 0:03:00]} 3. Nf3 {[%clk 0:03:00]}  cxd4 {[%clk 0:03:00]} 4. Nxd4 {[%clk 0:03:01]}  g6 {[%clk 0:03:00]} 5. Nc3 {[%clk 0:03:00]}  Bg7 {[%clk 0:03:01]} 6. g3 {[%clk 0:03:01]}  O-O {[%clk 0:03:02]} 7. Bg2 {[%clk 0:03:02]}  Nc6 {[%clk 0:03:03]} 8. O-O {[%clk 0:03:02]}  Nxd4 {[%clk 0:03:03]} 9. Qxd4 {[%clk 0:03:03]}  d6 {[%clk 0:03:04]} 10. Qd2 {[%clk 0:03:02]}  Be6 {[%clk 0:03:02]} 11. b3 {[%clk 0:03:02]}  d5 {[%clk 0:02:50]} 12. cxd5 {[%clk 0:01:26]}  Nxd5 {[%clk 0:02:51]} 13. Nxd5 {[%clk 0:01:25]}  Bxa1 {[%clk 0:02:24]} 14. Ba3 {[%clk 0:00:59]}  Bxd5 {[%clk 0:02:18]} 15. Qxd5 {[%clk 0:00:59]}  Qxd5 {[%clk 0:02:03]} 16. Bxd5 {[%clk 0:00:59]}  Bf6 {[%clk 0:02:03]} 17. Bxb7 {[%clk 0:00:59]}  Rab8 {[%clk 0:02:04]} 18. Ba6 {[%clk 0:00:54]}  Rfd8 {[%clk 0:02:02]} 19. Bd3 {[%clk 0:00:50]}  Rbc8 {[%clk 0:01:55]} 20. Kg2 {[%clk 0:00:42]}  h5 {[%clk 0:01:54]} 21. Kf3 {[%clk 0:00:39]}  Kg7 {[%clk 0:01:54]} 22. Ke3 {[%clk 0:00:35]}  e6 {[%clk 0:01:53]} 23. f4 {[%clk 0:00:24]}  Bc3 {[%clk 0:01:48]} 24. Rc1 {[%clk 0:00:19]}  Bd4+ {[%clk 0:01:43]} 25. Ke4 {[%clk 0:00:17]}  f5+ {[%clk 0:01:31]} 26. Kf3 {[%clk 0:00:17]}  Rxc1 {[%clk 0:01:32]} 27. Bxc1 {[%clk 0:00:17]}  Kf6 {[%clk 0:01:33]} 28. Ba3 {[%clk 0:00:17]}  e5 {[%clk 0:01:21]} 29. fxe5+ {[%clk 0:00:15]}  Bxe5 {[%clk 0:01:22]} 30. Bc5 {[%clk 0:00:14]}  Bd4 {[%clk 0:01:23]} 31. Bb4 {[%clk 0:00:13]}  g5 {[%clk 0:01:23]} 32. Bc4 {[%clk 0:00:13]}  g4+ {[%clk 0:01:21]} 33. Kg2 {[%clk 0:00:13]}  Be3 {[%clk 0:01:16]} 34. h3 {[%clk 0:00:12]}  Rd1 {[%clk 0:01:15]} 35. h4 {[%clk 0:00:11]}  Rg1+ {[%clk 0:01:12]} 36. Kh2 {[%clk 0:00:10]}  Rc1 {[%clk 0:01:13]} 37. a4 {[%clk 0:00:10]}  f4 {[%clk 0:01:05]} 38. gxf4 {[%clk 0:00:09]}  Bxf4+ {[%clk 0:01:06]} 39. Kg2 {[%clk 0:00:10]}  Be3 {[%clk 0:01:00]} 40. Ba3 {[%clk 0:00:10]}  Rg1+ {[%clk 0:00:58]} 41. Kh2 {[%clk 0:00:10]}  Ke5 {[%clk 0:00:56]} 42. Be7 {[%clk 0:00:08]}  g3+ {[%clk 0:00:47]} 43. Kh3 {[%clk 0:00:08]}  Bf2 {[%clk 0:00:48]} 44. Bd8 {[%clk 0:00:03]}  Rh1+ {[%clk 0:00:42]} 45. Kg2 {[%clk 0:00:03]}  Rh2+ {[%clk 0:00:43]} 46. Kf1 {[%clk 0:00:03]}  Bb6 {[%clk 0:00:41]} 47. Be7 {[%clk 0:00:02]}  g2+ {[%clk 0:00:41]} 0-1


[Site "https://www.chess.com"]

[Event "Titled Tuesday Blitz August 31 2021"]
[White "Bernadskiy, Vitaliy"]
[Black "Garcia Garcia, Alejandro"]
[WhiteFideId "14100371"]
[BlackFideId "3516334"]
[WhiteElo "2742"]
[BlackElo "2475"]
[Result "1-0"]
[Round "03"]
[TimeControl "180+1"]
[Date "2021.08.31"]
[WhiteClock "0:01:48"]
[BlackClock "0:01:34"]

1. e4 {[%clk 0:03:00]}  c5 {[%clk 0:02:59]} 2. Nf3 {[%clk 0:03:01]}  e6 {[%clk 0:02:59]} 3. d4 {[%clk 0:03:01]}  cxd4 {[%clk 0:03:00]} 4. Nxd4 {[%clk 0:03:01]}  Nc6 {[%clk 0:03:01]} 5. Nc3 {[%clk 0:03:02]}  Nf6 {[%clk 0:03:01]} 6. Be2 {[%clk 0:02:58]}  Bb4 {[%clk 0:03:01]} 7. O-O {[%clk 0:02:58]}  O-O {[%clk 0:03:00]} 8. Bg5 {[%clk 0:02:57]}  h6 {[%clk 0:02:56]} 9. Bh4 {[%clk 0:02:54]}  Bxc3 {[%clk 0:02:39]} 10. Bxf6 {[%clk 0:02:08]}  Qxf6 {[%clk 0:02:35]} 11. bxc3 {[%clk 0:02:09]}  Rd8 {[%clk 0:02:20]} 12. f4 {[%clk 0:01:54]}  d6 {[%clk 0:02:19]} 13. Rb1 {[%clk 0:01:50]}  Rb8 {[%clk 0:01:34]} 14. Nxc6 {[%clk 0:01:48]} 1-0


[Site "https://www.chess.com"]